bitfinex/quotes_BTCUSD_20220405
["timestamp","ask_amount","ask_price","bid_price","bid_amount"]
[1649159007832,0.28294276,46673.0,46668.0,0.05411122]
[1649159008036,0.28294276,46673.0,46668.0,0.053554]
[1649159008234,0.28294276,46673.0,46668.0,0.05411122]
[1649159008735,0.28294276,46673.0,46668.0,0.07553352]
[1649159008836,0.28294276,46673.0,46668.0,0.12553352]
[1649159008936,0.28294276,46673.0,46668.0,0.17553352]
[1649159009237,0.28294276,46673.0,46668.0,0.1749763]
[1649159009468,0.28294276,46673.0,46668.0,0.1755358]
[1649159009870,0.28294276,46673.0,46670.0,0.053553]
[1649159011673,0.31027063,46678.0,46670.0,0.053553]
[1649159011772,0.31027063,46678.0,46671.0,0.05355]
[1649159011872,0.31027063,46678.0,46673.0,0.02142034]
[1649159011873,0.00055941,46676.0,46673.0,0.02142034]
[1649159011975,0.320703,46675.0,46673.0,0.02142034]
[1649159012075,0.00055941,46676.0,46673.0,0.02142034]
[1649159012174,0.320703,46675.0,46673.0,0.02142034]
[1649159012276,0.00055941,46676.0,46673.0,0.02142034]
[1649159012374,0.320703,46675.0,46673.0,0.02142034]
[1649159012475,0.00055941,46676.0,46673.0,0.02142034]
[1649159012576,0.320703,46675.0,46673.0,0.02142034]
[1649159012675,0.2597122,46676.0,46673.0,0.02142034]
[1649159012928,0.25915279,46676.0,46673.0,0.02142034]
[1649159013028,0.320703,46675.0,46673.0,0.02142034]
[1649159013144,0.25971221,46676.0,46673.0,0.02142034]
[1649159013237,0.320703,46675.0,46673.0,0.02142034]
[1649159013839,0.320703,46675.0,46672.0,0.05]
[1649159014043,0.620703,46675.0,46672.0,0.05]
[1649159014342,0.620703,46675.0,46669.0,0.00055976]
[1649159014743,0.320703,46675.0,46669.0,0.00055976]
[1649159015145,0.25971246,46676.0,46669.0,0.00055976]
[1649159015245,0.320703,46675.0,46668.0,0.05]
[1649159015349,0.25915279,46676.0,46668.0,0.05]
[1649159015495,0.25971245,46676.0,46669.0,0.00055975]
[1649159015795,0.320703,46675.0,46669.0,0.00055975]
[1649159015946,0.25971245,46676.0,46669.0,0.00055975]
[1649159016147,0.320703,46675.0,46669.0,0.00055975]
[1649159016249,0.25971245,46676.0,46669.0,0.00055975]
[1649159016348,0.320703,46675.0,46669.0,0.00055975]
[1649159016449,0.25915279,46676.0,46668.0,0.05]
[1649159016646,0.25915279,46676.0,46669.0,0.00055975]
[1649159016746,0.320703,46675.0,46669.0,0.00055975]
[1649159016965,0.620703,46675.0,46669.0,0.00055975]
[1649159017066,0.320703,46674.0,46669.0,0.00055975]
[1649159017165,0.3,46675.0,46669.0,0.00055975]
[1649159017265,0.320703,46674.0,46669.0,0.00055975]
[1649159017366,0.3,46675.0,46669.0,0.00055975]
[1649159017466,0.320703,46674.0,46669.0,0.00055975]
[1649159017566,0.3,46675.0,46669.0,0.00055975]
[1649159017666,0.3,46675.0,46668.0,0.05]
[1649159017967,0.320703,46674.0,46669.0,0.0005597]
[1649159018869,0.320703,46674.0,46664.0,0.207109]
[1649159018971,0.3,46675.0,46664.0,0.207109]
[1649159019121,0.320703,46674.0,46669.0,0.0005597]
[1649159020022,0.320703,46674.0,46663.0,0.30692738]
[1649159020126,0.3,46675.0,46663.0,0.30692738]
[1649159020223,0.3,46675.0,46663.0,0.40692738]
[1649159020325,0.3,46675.0,46669.0,0.0005597]
[1649159020423,0.320703,46674.0,46669.0,0.0005597]
[1649159021271,0.3,46675.0,46674.0,8.654e-05]
[1649159021375,0.620703,46675.0,46674.0,8.654e-05]
[1649159025787,0.320703,46675.0,46674.0,8.654e-05]
[1649159026791,0.32059859,46675.0,46674.0,8.654e-05]
[1649159027391,0.62059859,46675.0,46674.0,8.654e-05]
[1649159030827,0.79662993,46675.0,46674.0,8.654e-05]
[1649159031580,0.62059859,46675.0,46674.0,8.654e-05]
[1649159047942,0.72059859,46675.0,46674.0,8.654e-05]
[1649159048141,0.89682197,46675.0,46674.0,8.654e-05]
[1649159048341,0.72059859,46675.0,46674.0,8.654e-05]
[1649159048541,0.89682224,46675.0,46674.0,8.654e-05]
[1649159048741,0.72059859,46675.0,46674.0,8.654e-05]
[1649159048842,0.89682122,46675.0,46674.0,8.654e-05]
[1649159055929,0.32059859,46675.0,46674.0,8.654e-05]
[1649159056279,0.25915279,46676.0,46674.0,8.654e-05]
[1649159057180,0.320701,46675.0,46674.0,8.654e-05]
[1649159058645,0.620701,46675.0,46674.0,8.654e-05]
[1649159063683,0.620701,46675.0,46674.0,1.978e-05]
[1649159073634,0.620701,46675.0,46669.0,0.00022584]
[1649159073782,0.320701,46673.0,46669.0,0.00022584]
[1649159074083,0.320701,46673.0,46666.0,0.1]
[1649159074185,1.25,46674.0,46666.0,0.1]
[1649159074286,1.25,46674.0,46665.0,0.32347742]
[1649159074542,0.320701,46673.0,46665.0,0.32347742]
[1649159074687,1.25,46674.0,46665.0,0.32347742]
[1649159074785,0.320701,46673.0,46665.0,0.32347742]
[1649159074985,1.25,46674.0,46665.0,0.32347742]
[1649159075087,0.320701,46673.0,46666.0,0.32582147]
[1649159075436,0.320701,46673.0,46667.0,0.00056031]
[1649159075537,0.320701,46672.0,46667.0,0.00056031]
[1649159076238,0.320701,46674.0,46667.0,0.00056031]
[1649159076541,0.320701,46674.0,46665.0,0.32347742]
[1649159076640,0.320701,46673.0,46665.0,0.32347742]
[1649159076738,0.320701,46674.0,46667.0,0.00056031]
[1649159077683,0.320701,46674.0,46665.0,0.32347742]
[1649159077980,0.320701,46674.0,46667.0,0.00056031]
[1649159078882,0.320701,46674.0,46666.0,0.32568532]
[1649159079082,0.320701,46674.0,46667.0,0.00056006]
[1649159080137,0.320701,46674.0,46665.0,0.32347742]
[1649159080236,0.320701,46674.0,46667.0,0.00056006]
[1649159081265,0.320701,46674.0,46665.0,0.32347742]
[1649159081463,0.320701,46674.0,46667.0,0.00056006]
[1649159082116,0.26698828,46668.0,46667.0,0.00056006]
[1649159082219,0.26698828,46668.0,46667.0,0.13158655]
[1649159082415,0.26698828,46668.0,46667.0,0.18158655]
[1649159082516,0.26698828,46668.0,46667.0,0.23102649]
[1649159082817,0.58768928,46668.0,46667.0,0.23102649]
[1649159083119,0.88768928,46668.0,46667.0,0.23102649]
[1649159083219,0.58768928,46668.0,46667.0,0.23102649]
[1649159083721,0.57556089,46668.0,46667.0,0.23102649]
[1649159084479,0.57556089,46668.0,46667.0,0.1]
[1649159084580,0.57556089,46668.0,46667.0,0.23102649]
[1649159085081,0.57556089,46668.0,46667.0,0.18102649]
[1649159085082,0.25485989,46668.0,46667.0,0.18102649]
[1649159085279,0.87556089,46668.0,46667.0,0.18102649]
[1649159085479,0.55485989,46668.0,46667.0,0.18102649]
[1649159085685,0.28853226,46664.0,46659.0,0.1969]
[1649159085780,0.3,46663.0,46659.0,0.05]
[1649159085880,0.28853226,46664.0,46656.0,0.01072]
[1649159085981,0.28853226,46664.0,46661.0,0.17]
[1649159086081,0.28853226,46664.0,46663.0,0.17]
[1649159086479,0.28853226,46664.0,46663.0,0.22]
[1649159087130,0.28853226,46664.0,46663.0,0.27]
[1649159088537,0.28853226,46664.0,46663.0,0.05]
[1649159088639,0.28853226,46664.0,46663.0,0.27]
[1649159088736,0.28853226,46664.0,46663.0,0.22]
[1649159094417,0.28853226,46664.0,46663.0,0.05]
[1649159094418,0.60923326,46664.0,46663.0,0.05]
[1649159094515,0.90923326,46664.0,46663.0,0.05]
[1649159094614,0.90923326,46664.0,46658.0,0.05]
[1649159094714,0.28853226,46664.0,46661.0,0.00057829]
[1649159094816,0.320701,46663.0,46661.0,0.00057829]
[1649159095364,0.24170253,46662.0,46661.0,0.00057829]
[1649159095466,0.28853226,46664.0,46661.0,0.00057829]
[1649159095467,0.320701,46663.0,46661.0,0.00057829]
[1649159095734,0.28853226,46664.0,46657.0,0.053576]
[1649159095835,0.23879202,46658.0,46657.0,0.053576]
[1649159095935,0.23879202,46658.0,46657.0,0.13446]
[1649159096037,0.3,46663.0,46657.0,0.13446]
[1649159096135,0.28853226,46664.0,46657.0,0.103576]
[1649159096339,0.28853226,46664.0,46657.0,0.053576]
[1649159096735,0.28853226,46664.0,46658.0,0.32575662]
[1649159096836,0.28853226,46664.0,46658.0,0.42575662]
[1649159097138,0.28853226,46664.0,46658.0,0.42633493]
[1649159097640,0.28853226,46664.0,46658.0,0.53347293]
[1649159097738,0.28853226,46664.0,46659.0,0.02142663]
[1649159098341,0.28853226,46664.0,46659.0,0.02198602]
[1649159098644,0.28853226,46664.0,46660.0,0.08088]
[1649159098743,0.28853226,46664.0,46660.0,0.053563]
[1649159098845,0.28853226,46664.0,46660.0,0.103563]
[1649159098943,0.28853226,46664.0,46661.0,0.05]
[1649159100739,0.28853226,46664.0,46662.0,0.32569185]
[1649159100839,0.28853226,46664.0,46663.0,0.05]
[1649159101893,0.28853226,46664.0,46661.0,0.00056061]
[1649159102896,0.28853226,46664.0,46657.0,1.40223897]
[1649159102993,0.28080398,46663.0,46657.0,1.40223897]
[1649159103135,0.28080398,46663.0,46660.0,0.00056062]
[1649159104138,0.28080398,46663.0,46657.0,1.40223897]
[1649159104341,0.28080398,46663.0,46659.0,0.00056063]
[1649159105342,0.28080398,46663.0,46657.0,1.45581197]
[1649159105542,0.28080398,46663.0,46659.0,0.00055939]
[1649159105895,0.27131498,46663.0,46659.0,0.00055939]
[1649159106099,0.27131498,46663.0,46659.0,0.05055939]
[1649159106195,0.27131498,46663.0,46659.0,0.10055939]
[1649159106498,0.27131498,46663.0,46659.0,0.1]
[1649159106695,0.27131498,46663.0,46659.0,0.10055939]
[1649159107730,0.27131498,46663.0,46659.0,0.1]
[1649159107931,0.27131498,46663.0,46659.0,0.10055939]
[1649159108078,0.26131498,46663.0,46659.0,0.10055939]
[1649159108880,0.26131498,46663.0,46659.0,0.1]
[1649159109079,0.01228215,46661.0,46659.0,0.10055947]
[1649159109379,0.0245643,46661.0,46659.0,0.10055947]
[1649159110086,0.0245643,46661.0,46659.0,0.1]
[1649159113737,0.320701,46660.0,46659.0,0.1]
[1649159113890,0.620701,46660.0,46659.0,0.05]
[1649159114087,0.320701,46659.0,46658.0,0.00055948]
[1649159114287,0.3,46660.0,46658.0,0.00055948]
[1649159114390,0.01228215,46659.0,46658.0,0.00055948]
[1649159114692,0.31358392,46659.0,46658.0,0.00055948]
[1649159114790,0.61358392,46659.0,46658.0,0.00055948]
[1649159114891,0.0245643,46659.0,46654.0,0.05]
[1649159114994,0.26342545,46656.0,46654.0,0.05]
[1649159115100,0.26342545,46656.0,46655.0,0.01682185]
[1649159116043,0.26342545,46656.0,46655.0,0.22682185]
[1649159116394,0.26342545,46656.0,46655.0,0.21]
[1649159117292,0.56342545,46656.0,46655.0,0.21]
[1649159117395,0.57153735,46656.0,46655.0,0.21]
[1649159117495,0.21014477,46654.0,46652.0,0.053587]
[1649159117597,0.21014477,46654.0,46653.0,0.00055951]
[1649159118540,0.21014477,46654.0,46652.0,0.053587]
[1649159118839,0.21014477,46654.0,46653.0,0.21]
[1649159118941,0.51014477,46654.0,46653.0,0.21]
[1649159119140,0.51014477,46654.0,46653.0,0.26]
[1649159119239,0.83084577,46654.0,46653.0,0.30302104]
[1649159119742,0.84312792,46654.0,46653.0,0.30302104]
[1649159119945,0.85541007,46654.0,46653.0,0.30302104]
[1649159123464,0.55541007,46654.0,46653.0,0.30302104]
[1649159124916,0.55541007,46654.0,46653.0,0.30287853]
[1649159127652,0.23470907,46654.0,46653.0,0.30287853]
[1649159132287,0.55541007,46654.0,46653.0,0.30287853]
[1649159132689,0.23470907,46654.0,46653.0,0.30287853]
[1649159134595,0.23470907,46654.0,46653.0,0.38377853]
[1649159134697,0.23470907,46654.0,46653.0,0.52195712]
[1649159134794,0.23470907,46654.0,46653.0,0.51741549]
[1649159134896,0.23470907,46654.0,46653.0,0.57105479]
[1649159136605,0.23470907,46654.0,46653.0,0.51748979]
[1649159136804,0.23470907,46654.0,46653.0,0.48741783]
[1649159136945,0.23470907,46654.0,46653.0,0.40651783]
[1649159140305,0.23470907,46654.0,46653.0,0.39567853]
[1649159140404,0.23470907,46654.0,46653.0,0.40651957]
[1649159141943,0.23470907,46654.0,46653.0,0.36371957]
[1649159142140,0.23460626,46654.0,46653.0,0.36371957]
[1649159144047,0.23460626,46654.0,46653.0,0.68969475]
[1649159144830,0.23460626,46654.0,46653.0,0.68969463]
[1649159145581,0.23460626,46654.0,46653.0,0.77059463]
[1649159145681,0.23460626,46654.0,46653.0,0.68969463]
[1649159145787,0.23460626,46654.0,46653.0,0.77059463]
[1649159145880,0.23460626,46654.0,46653.0,0.68969463]
[1649159147490,0.3,46663.0,46658.0,0.28203515]
[1649159147587,0.320701,46662.0,46658.0,0.28203515]
[1649159147685,0.13812447,46657.0,46655.0,0.2]
[1649159147784,0.13812447,46657.0,46655.0,0.25]
[1649159147885,0.13812447,46657.0,46655.0,0.3]
[1649159147985,0.13812447,46657.0,46656.0,0.04302104]
[1649159148589,0.13812447,46657.0,46656.0,0.32658636]
[1649159148787,0.13812447,46657.0,46656.0,0.37658636]
[1649159149739,0.13812447,46657.0,46654.0,0.35379848]
[1649159149847,0.13812447,46657.0,46653.0,0.21]
[1649159150041,0.13812447,46657.0,46654.0,0.00054423]
[1649159150641,0.13812447,46657.0,46655.0,0.26157082]
[1649159150741,0.13812447,46657.0,46654.0,0.00054423]
[1649159150993,0.13812447,46657.0,46653.0,0.21]
[1649159151293,0.13812447,46657.0,46656.0,0.01084069]
[1649159151294,0.18812447,46657.0,46656.0,0.01084069]
[1649159151393,0.50882547,46657.0,46656.0,0.01084069]
[1649159151744,0.18812447,46657.0,46653.0,0.21054424]
[1649159152088,0.18812447,46657.0,46656.0,0.01084115]
[1649159152236,0.50882547,46657.0,46656.0,0.01084115]
[1649159160208,0.73313615,46657.0,46656.0,0.01084115]
[1649159160308,0.73313615,46657.0,46654.0,0.000527]
[1649159160409,0.320701,46656.0,46654.0,0.000527]
[1649159160506,0.2244331,46655.0,46654.0,0.000527]
[1649159160606,0.2244331,46655.0,46653.0,0.21]
[1649159160607,0.5451341,46655.0,46653.0,0.21]
[1649159160708,0.54520272,46654.0,46653.0,0.21]
[1649159160909,0.94890086,46654.0,46653.0,0.21052811]
[1649159161857,0.94890086,46654.0,46653.0,0.21]
[1649159167745,0.72439914,46654.0,46653.0,0.21]
[1649159168754,0.94929673,46654.0,46653.0,0.21]
[1649159170654,1.04929673,46654.0,46653.0,0.21]
[1649159170853,2.36987057,46654.0,46653.0,0.21]
[1649159171005,2.36987057,46654.0,46653.0,0.05857565]
[1649159173004,2.3584497,46654.0,46653.0,0.05857565]
[1649159173205,2.35720967,46654.0,46653.0,0.05857565]
[1649159173705,2.85720967,46654.0,46653.0,0.05857565]
[1649159174445,2.88970967,46654.0,46653.0,0.05857565]
[1649159175844,2.96673967,46654.0,46653.0,0.05857565]
[1649159177699,0.1166223,46644.0,46641.0,0.00233377]
[1649159177802,0.17022042,46644.0,46641.0,0.00233377]
[1649159178739,0.56913567,46643.0,46641.0,0.00233377]
[1649159178842,0.83292311,46643.0,46641.0,0.00233377]
[1649159178945,0.51222211,46643.0,46641.0,0.00233377]
[1649159180598,0.320701,46642.0,46637.0,0.01072]
[1649159180698,0.26139509,46643.0,46641.0,0.0046082]
[1649159180797,0.26139509,46643.0,46636.0,0.26664582]
[1649159181050,0.26139509,46643.0,46637.0,0.01072]
[1649159181148,0.26139509,46643.0,46636.0,0.26664582]
[1649159181248,0.26139509,46643.0,46637.0,0.32657551]
[1649159181451,0.26139509,46643.0,46637.0,0.59088731]
[1649159181698,0.2470085,46641.0,46637.0,0.59088731]
[1649159181798,0.2470085,46641.0,46640.0,0.0046082]
[1649159181905,0.26139509,46643.0,46640.0,0.0046082]
[1649159182009,0.26139509,46643.0,46637.0,0.59088731]
[1649159182209,0.26139509,46643.0,46638.0,0.32620626]
[1649159182506,0.26139509,46643.0,46638.0,0.32680439]
[1649159182957,0.55816533,46643.0,46638.0,0.32680439]
[1649159183209,0.55816533,46643.0,46639.0,0.32620626]
[1649159183511,0.26139509,46643.0,46639.0,0.32620626]
[1649159183712,0.26139509,46643.0,46639.0,0.32680438]
[1649159184213,0.26139509,46643.0,46639.0,0.00059812]
[1649159184714,0.26139509,46643.0,46636.0,0.26664582]
[1649159184817,0.26139509,46643.0,46639.0,0.00059812]
[1649159185417,0.24695822,46640.0,46639.0,0.00059812]
[1649159185515,0.26139509,46643.0,46639.0,0.00520632]
[1649159185651,0.26139509,46643.0,46639.0,0.00059812]
[1649159185846,0.26139509,46643.0,46636.0,0.26664582]
[1649159186046,0.26139509,46643.0,46639.0,0.21057815]
[1649159186551,0.54268481,46643.0,46639.0,0.21057815]
[1649159187047,0.54268481,46643.0,46639.0,0.21]
[1649159187297,0.54268481,46643.0,46639.0,0.21057815]
[1649159188247,0.54268481,46643.0,46639.0,0.21]
[1649159188499,0.54268481,46643.0,46639.0,0.21057815]
[1649159189498,0.54268481,46643.0,46639.0,0.21]
[1649159189695,0.54268481,46643.0,46639.0,0.21055957]
[1649159189796,0.17022042,46644.0,46639.0,0.21055957]
[1649159190699,0.17022042,46644.0,46639.0,0.21]
[1649159190899,0.17022042,46644.0,46639.0,0.21055956]
[1649159191349,0.320701,46643.0,46639.0,0.21055956]
[1649159191654,0.30913072,46642.0,46639.0,0.21055956]
[1649159191847,0.17022042,46644.0,46639.0,0.21]
[1649159193266,0.17022042,46644.0,46639.0,0.21056034]
[1649159193569,0.320701,46643.0,46639.0,0.21056034]
[1649159193719,0.17022042,46644.0,46639.0,0.21056034]
[1649159194119,0.2398818,46641.0,46639.0,0.21056034]
[1649159194222,0.17022042,46644.0,46640.0,0.0046082]
[1649159194318,0.320701,46643.0,46639.0,0.21]
[1649159194423,0.17022042,46644.0,46639.0,0.21]
[1649159194521,0.17022042,46644.0,46639.0,0.21056034]
[1649159194621,0.320701,46643.0,46639.0,0.21056034]
[1649159194719,0.17022042,46644.0,46639.0,0.21056034]
[1649159195021,0.320701,46643.0,46639.0,0.21056034]
[1649159195124,0.17022042,46644.0,46639.0,0.21056034]
[1649159195221,0.320701,46643.0,46639.0,0.21056034]
[1649159195321,0.2994837,46643.0,46639.0,0.21056034]
[1649159195523,0.2994837,46643.0,46639.0,0.21]
[1649159195726,0.2994837,46643.0,46639.0,0.21056035]
[1649159196731,0.2994837,46643.0,46639.0,0.21]
[1649159196938,0.2994837,46643.0,46639.0,0.21056027]
[1649159197929,0.17022042,46644.0,46639.0,0.21]
[1649159198030,0.320701,46643.0,46639.0,0.21]
[1649159198181,0.17022042,46644.0,46639.0,0.21056027]
[1649159198831,0.17022042,46644.0,46640.0,0.32629519]
[1649159198928,0.24881097,46643.0,46640.0,0.32629519]
[1649159199030,0.1166223,46644.0,46640.0,0.32629519]
[1649159199329,0.1166223,46644.0,46640.0,0.32685546]
[1649159199832,0.1166223,46644.0,46641.0,0.35637765]
[1649159199931,0.17021418,46644.0,46641.0,0.35637765]
[1649159200133,0.17021418,46644.0,46643.0,0.26749914]
[1649159200431,0.17021418,46644.0,46641.0,0.64392091]
[1649159200755,0.17021418,46644.0,46642.0,0.080934]
[1649159200863,0.17021418,46644.0,46641.0,0.31762572]
[1649159200955,0.17021418,46644.0,46642.0,0.080933]
[1649159201056,0.17021418,46644.0,46641.0,0.31762572]
[1649159201158,0.17021418,46644.0,46642.0,0.080933]
[1649159201257,0.17021418,46644.0,46641.0,0.31762572]
[1649159201556,0.17021418,46644.0,46641.0,0.55280435]
[1649159201858,0.17021418,46644.0,46642.0,0.32629916]
[1649159203860,0.17021418,46644.0,46643.0,0.080932]
[1649159203960,0.17021418,46644.0,46642.0,0.32629916]
[1649159204060,0.17021418,46644.0,46643.0,0.080931]
[1649159204160,0.17021418,46644.0,46642.0,0.32629916]
[1649159204265,0.17021418,46644.0,46643.0,0.080931]
[1649159204401,0.17021418,46644.0,46642.0,0.32629916]
[1649159205351,0.17021418,46644.0,46643.0,0.080931]
[1649159205453,0.17021418,46644.0,46642.0,0.32629916]
[1649159205850,0.17021418,46644.0,46643.0,0.17]
[1649159206058,0.17021418,46644.0,46643.0,0.37847553]
[1649159206157,0.17021418,46644.0,46643.0,0.550931]
[1649159206357,0.1166223,46644.0,46643.0,0.550931]
[1649159207055,0.1166223,46644.0,46643.0,0.92723016]
[1649159207557,0.1166223,46644.0,46643.0,0.84629916]
[1649159207958,0.1166223,46644.0,46643.0,0.92722916]
[1649159208173,0.1166223,46644.0,46643.0,0.62722916]
[1649159209418,0.1166223,46644.0,46643.0,0.54629916]
[1649159210517,0.1166223,46644.0,46643.0,0.39175004]
[1649159211815,0.1166223,46644.0,46643.0,0.37629916]
[1649159211956,0.1166223,46644.0,46643.0,0.46183657]
[1649159212706,0.1166223,46644.0,46643.0,0.38090657]
[1649159214909,0.85465454,46644.0,46643.0,0.38090657]
[1649159215873,0.85457217,46644.0,46643.0,0.38090657]
[1649159218874,0.85457217,46644.0,46643.0,0.05460741]
[1649159218976,0.85457217,46644.0,46643.0,0.00460741]
[1649159223006,0.85457217,46644.0,46643.0,0.08553841]
[1649159223180,0.85457217,46644.0,46643.0,0.50841707]
[1649159223726,0.85457217,46644.0,46643.0,0.83461966]
[1649159224530,0.85457217,46644.0,46643.0,0.83001225]
[1649159224629,0.85457217,46644.0,46643.0,0.93461931]
[1649159224978,0.85457217,46644.0,46643.0,0.63461931]
[1649159225630,0.85457217,46644.0,46643.0,0.87997458]
[1649159226232,0.85457217,46644.0,46643.0,0.96574664]
[1649159226430,0.85457217,46644.0,46643.0,0.87997458]
[1649159226734,0.85457217,46644.0,46643.0,0.96574664]
[1649159226933,0.85457217,46644.0,46643.0,0.87997458]
[1649159227135,0.85457217,46644.0,46643.0,0.96574664]
[1649159227337,0.85457217,46644.0,46643.0,0.87997458]
[1649159227534,0.85457217,46644.0,46643.0,0.96574781]
[1649159227739,0.85457217,46644.0,46643.0,0.87997458]
[1649159227937,0.85457217,46644.0,46643.0,0.96574781]
[1649159228137,0.85457217,46644.0,46643.0,0.87997458]
[1649159228238,0.85457217,46644.0,46643.0,0.63461931]
[1649159228342,0.85457217,46644.0,46643.0,0.72039254]
[1649159228537,0.85457217,46644.0,46643.0,0.63461931]
[1649159229341,0.85457217,46644.0,46643.0,0.87791011]
[1649159229640,0.85457217,46644.0,46643.0,1.18627847]
[1649159229741,0.85457217,46644.0,46643.0,1.30074202]
[1649159229846,0.85457217,46644.0,46643.0,0.96368334]
[1649159230141,0.85457217,46644.0,46643.0,1.26368334]
[1649159230241,0.85457217,46644.0,46643.0,1.60074112]
[1649159230444,0.85457217,46644.0,46643.0,1.84364057]
[1649159232865,0.85457217,46644.0,46643.0,1.84337133]
[1649159233012,0.85457217,46644.0,46643.0,1.60008033]
[1649159234067,0.85457217,46644.0,46643.0,1.85705352]
[1649159234169,0.85457217,46644.0,46643.0,1.80732276]
[1649159234710,0.85457217,46644.0,46643.0,1.56442331]
[1649159236162,0.85457217,46644.0,46643.0,1.61442331]
[1649159236311,0.85457217,46644.0,46643.0,1.31442331]
[1649159236462,0.85457217,46644.0,46643.0,1.05745012]
[1649159236862,0.85457217,46644.0,46643.0,0.72039234]
[1649159237413,0.85457217,46644.0,46643.0,0.56174045]
[1649159237517,1.07163811,46644.0,46643.0,0.41174045]
[1649159237621,1.07163811,46644.0,46643.0,0.33080945]
[1649159237913,1.07163811,46644.0,46643.0,0.32620259]
[1649159238204,1.07163811,46644.0,46641.0,0.0005294]
[1649159238599,0.27798694,46642.0,46641.0,0.0005294]
[1649159238747,0.27798694,46642.0,46641.0,0.1088072]
[1649159238850,0.27798694,46642.0,46641.0,0.1082778]
[1649159239147,0.33158654,46642.0,46639.0,0.21052941]
[1649159239347,0.33158654,46642.0,46640.0,0.080936]
[1649159239451,0.33158654,46642.0,46640.0,0.080939]
[1649159239648,0.33158654,46642.0,46639.0,0.21052941]
[1649159239750,0.33158654,46642.0,46640.0,0.080939]
[1649159239849,0.33158654,46642.0,46639.0,0.21052941]
[1649159240100,0.33158654,46642.0,46639.0,0.21]
[1649159241403,0.33158654,46642.0,46640.0,0.08094]
[1649159241502,0.33158654,46642.0,46639.0,0.21]
[1649159244761,0.33158654,46642.0,46639.0,0.2]
[1649159247618,0.34049715,46641.0,46639.0,0.2]
[1649159247719,0.54587153,46640.0,46639.0,0.2]
[1649159247919,0.59587153,46640.0,46639.0,0.2]
[1649159248018,0.59587153,46640.0,46633.0,0.001]
[1649159248019,0.26976858,46636.0,46633.0,0.001]
[1649159248122,0.620701,46635.0,46633.0,0.001]
[1649159248218,0.3,46634.0,46633.0,0.001]
[1649159248317,0.620701,46634.0,46633.0,0.001]
[1649159250320,0.670701,46634.0,46633.0,0.001]
[1649159252176,0.620701,46634.0,46633.0,0.001]
[1649159254266,0.670701,46634.0,46633.0,0.001]
[1649159255369,0.620701,46634.0,46633.0,0.001]
[1649159258195,0.670701,46634.0,46633.0,0.021]
[1649159260196,0.620701,46634.0,46633.0,0.021]
[1649159262713,0.620701,46634.0,46633.0,0.01786932]
[1649159269169,0.620701,46634.0,46631.0,0.00152948]
[1649159269269,0.320701,46633.0,46631.0,0.00152948]
[1649159269519,0.620701,46632.0,46631.0,0.00152948]
[1649159270120,0.620701,46632.0,46631.0,0.001]
[1649159278143,0.620701,46632.0,46631.0,0.32734537]
[1649159278498,0.620701,46632.0,46629.0,0.00052949]
[1649159278499,0.14299838,46630.0,46629.0,0.00052949]
[1649159278595,0.76369938,46630.0,46628.0,0.001]
[1649159278694,0.610701,46629.0,46628.0,0.001]
[1649159278794,0.50160171,46629.0,46628.0,0.001]
[1649159280971,0.20160171,46629.0,46628.0,0.001]
[1649159284722,0.50160171,46629.0,46628.0,0.001]
[1649159286427,0.20160171,46629.0,46628.0,0.001]
[1649159286530,0.14299838,46630.0,46628.0,0.001]
[1649159287186,0.320728,46629.0,46628.0,0.001]
[1649159287987,0.320728,46629.0,46628.0,0.32523095]
[1649159288134,0.320728,46629.0,46628.0,0.37523095]
[1649159288838,0.320728,46629.0,46628.0,0.38523095]
[1649159288937,0.320728,46629.0,46628.0,0.061]
[1649159289237,0.320728,46629.0,46628.0,0.011]
[1649159291018,0.320728,46629.0,46628.0,0.001]
[1649159291920,0.320728,46629.0,46628.0,0.26509435]
[1649159292071,0.320728,46629.0,46628.0,0.31509435]
[1649159292371,0.320728,46629.0,46628.0,0.051]
[1649159292674,0.320728,46629.0,46628.0,0.001]
[1649159292872,0.320728,46629.0,46628.0,0.051]
[1649159292973,0.320728,46629.0,46628.0,0.31537536]
[1649159293074,0.320728,46629.0,46628.0,0.051]
[1649159293222,0.320728,46629.0,46628.0,0.001]
[1649159294077,0.14299838,46630.0,46628.0,0.001]
[1649159294178,0.320728,46629.0,46628.0,0.001]
[1649159294969,0.14299838,46630.0,46628.0,0.32520165]
[1649159295071,0.320728,46629.0,46628.0,0.32520165]
[1649159295169,0.14299838,46630.0,46628.0,0.37520165]
[1649159295270,0.320728,46629.0,46628.0,0.37520165]
[1649159295971,0.320728,46629.0,46628.0,0.051]
[1649159296173,0.320728,46629.0,46628.0,0.001]
[1649159296727,0.14299838,46630.0,46628.0,0.001]
[1649159296828,0.320728,46629.0,46628.0,0.001]
[1649159296929,0.14299838,46630.0,46628.0,0.32520397]
[1649159297030,0.14299838,46630.0,46629.0,0.2644079]
[1649159297129,0.45784487,46630.0,46629.0,0.2644079]
[1649159298816,0.45784487,46630.0,46629.0,0.26440104]
[1649159299022,0.13711687,46630.0,46628.0,0.051]
[1649159299118,0.13711687,46630.0,46628.0,0.001]
[1649159299218,0.13711687,46630.0,46629.0,0.26438396]
[1649159299319,0.45784487,46630.0,46628.0,0.051]
[1649159299418,0.320728,46629.0,46628.0,0.051]
[1649159299868,0.320728,46629.0,46628.0,0.32510197]
[1649159299970,0.13711687,46630.0,46628.0,0.32510197]
[1649159300072,0.320728,46629.0,46628.0,0.32510197]
[1649159301625,0.320728,46629.0,46628.0,0.58945029]
[1649159301820,0.320728,46629.0,46628.0,0.26534832]
[1649159303122,0.620728,46629.0,46628.0,0.26534832]
[1649159303223,0.320728,46629.0,46628.0,0.26534832]
[1649159305125,0.320728,46629.0,46628.0,0.001]
[1649159305664,0.320728,46629.0,46628.0,0.26534832]
[1649159305866,0.320728,46629.0,46628.0,0.31534832]
[1649159306623,0.320728,46629.0,46628.0,0.051]
[1649159306819,0.320728,46629.0,46628.0,0.001]
[1649159307422,0.620728,46629.0,46628.0,0.001]
[1649159307773,0.320728,46629.0,46628.0,0.26534832]
[1649159308022,0.320728,46629.0,46628.0,0.001]
[1649159308273,0.620728,46629.0,46628.0,0.001]
[1649159308673,0.320728,46629.0,46628.0,0.001]
[1649159308876,0.620728,46629.0,46628.0,0.001]
[1649159308975,0.320728,46629.0,46628.0,0.001]
[1649159310000,0.320728,46629.0,46628.0,0.26534832]
[1649159310300,0.320728,46629.0,46628.0,0.31534832]
[1649159311404,0.320728,46629.0,46628.0,0.051]
[1649159311603,0.320728,46629.0,46628.0,0.001]